bitfinex-derivatives/quotes_ETHF0:USTF0_20250904
["timestamp","ask_amount","ask_price","bid_price","bid_amount"]
[1757027966911,0.7063,4334.8,4334.7,0.4007]
[1757027967620,0.7063,4334.8,4334.7,0.204]
[1757027968714,0.2967,4334.7,4334.5,40.8]
[1757027968919,0.7063,4334.6,4334.5,40.8]
[1757027972216,0.7063,4334.6,4334.5,41.0987]
[1757027973325,0.7063,4334.6,4334.5,41.035]
[1757027973521,0.7063,4334.6,4334.5,41.3337]
[1757027976428,0.1229,4335.5,4335.0,0.2987]
[1757027976429,0.2967,4335.4,4335.0,0.2987]
[1757027976627,0.4958,4335.2,4335.1,0.9344]
[1757027977329,0.7063,4335.2,4335.1,0.9344]
[1757027978449,0.2967,4335.4,4335.3,0.4007]
[1757027978627,0.4958,4335.4,4335.3,0.9344]
[1757027979218,0.7063,4335.4,4335.3,0.9344]
[1757027979625,0.7063,4335.4,4335.3,0.6357]
[1757027981021,0.7063,4335.4,4334.5,41.30473]
[1757027981022,0.7063,4335.4,4334.7,0.2987]
[1757027981221,0.5326,4335.0,4334.9,0.204]
[1757027981824,0.8293,4335.0,4334.9,0.204]
[1757027982426,0.2967,4334.9,4334.7,0.235]
[1757027982622,0.7063,4334.8,4334.7,0.235]
[1757027984929,0.2967,4334.8,4334.7,0.9344]
[1757027985129,0.1991,4334.9,4334.8,0.6994]
[1757027985330,0.7063,4334.9,4334.8,0.6994]
[1757027986332,0.7063,4334.9,4334.5,0.2987]
[1757027986640,0.7063,4334.7,4334.6,0.235]
[1757027987636,0.123,4334.5,4334.4,0.204]
[1757027987835,0.4081,4334.2,4334.1,0.2083]
[1757027988029,0.4081,4334.2,4334.1,0.235]
[1757027988331,0.7075,4334.2,4334.1,0.235]
[1757027988834,0.4081,4333.9,4333.8,3.12273732]
[1757027989033,0.7075,4333.9,4333.8,3.35773732]
[1757027989229,0.7075,4333.9,4333.8,0.4433]
[1757027990323,0.2994,4333.8,4333.5,2.91443732]
[1757027990536,0.7075,4333.8,4333.7,0.402]
[1757027991630,0.7075,4333.8,4333.4,2.91443732]
[1757027991827,0.826,4333.5,4333.4,3.63423732]
[1757027992030,0.7075,4333.5,4333.4,0.9548]
[1757027992231,0.826,4333.5,4333.4,0.637]
[1757027992735,0.826,4333.5,4333.4,41.437]
[1757027992932,0.826,4333.5,4333.4,0.2083]
[1757027993135,0.826,4333.5,4333.4,0.235]
[1757027994227,0.826,4333.5,4333.1,40.8]
[1757027994228,0.2994,4333.4,4333.1,40.8]
[1757027994434,0.7075,4333.3,4333.2,0.235]
[1757027997237,0.7075,4333.3,4333.2,0.4433]
[1757027998435,0.123,4334.5,4333.2,0.9548]
[1757027998638,0.7075,4334.4,4334.3,0.7198]
[1757027998839,0.7075,4334.4,4334.3,0.637]
[1757027999337,0.7075,4334.4,4334.3,0.235]
[1757027999927,0.7075,4334.4,4334.3,0.4433]
[1757028001130,0.7075,4334.4,4334.3,0.235]
[1757028001641,0.7075,4334.4,4334.3,0.4433]
[1757028002238,0.5065,4334.4,4334.3,0.9548]
[1757028002437,0.5065,4334.9,4334.8,0.7198]
[1757028002642,0.5065,4334.9,4334.8,0.9548]
[1757028004337,0.7075,4334.9,4334.8,0.9548]
[1757028004537,0.7075,4334.9,4334.8,0.637]
[1757028004737,0.7075,4334.9,4334.8,0.235]
[1757028004938,0.7075,4334.9,4334.8,0.4433]
[1757028005231,0.7075,4334.9,4334.8,0.637]
[1757028005430,0.2994,4335.4,4334.8,1.05221]
[1757028005637,0.7075,4335.4,4335.3,0.402]
[1757028006543,0.5065,4335.4,4335.3,0.9548]
[1757028008946,0.1185,4336.0,4335.3,0.9548]
[1757028009145,0.4081,4335.9,4335.8,0.2083]
[1757028009344,0.7075,4335.9,4335.8,0.2083]
[1757028010942,0.5266,4335.5,4335.4,0.5261]
[1757028011242,0.826,4335.5,4335.4,0.2083]
[1757028014844,0.826,4335.5,4335.4,0.7198]
[1757028015647,0.7075,4335.5,4335.4,0.7198]
[1757028015849,0.5065,4335.5,4335.4,0.7198]
[1757028017853,0.8304,4335.5,4335.4,0.7198]
[1757028018340,0.4215,4335.5,4335.4,0.402]
[1757028018540,0.6218,4335.5,4335.4,0.7131]
[1757028019751,0.8236,4335.5,4335.4,0.402]
[1757028019956,0.5242,4335.5,4335.4,0.235]
[1757028020152,0.8324,4335.5,4335.4,0.235]
[1757028021252,0.8324,4335.5,4335.3,0.235]
[1757028022652,0.7103,4334.8,4334.6,40.8]
[1757028022855,0.1221,4335.0,4334.4,0.208]
[1757028022856,0.1221,4334.5,4334.4,0.208]
[1757028023053,0.8324,4334.5,4334.4,0.6526]
[1757028023254,0.8324,4334.5,4334.4,41.7637]
[1757028024250,0.5242,4334.5,4334.4,0.442]
[1757028024554,0.5242,4334.5,4334.2,31.841]
[1757028024855,0.7103,4334.4,4334.3,0.442]
[1757028025155,0.3082,4334.3,4334.2,31.841]
[1757028025350,0.3082,4334.3,4334.2,32.075]
[1757028028249,0.5242,4333.5,4333.4,0.7297]
[1757028028453,0.8324,4333.5,4333.4,41.7637]
[1757028029051,0.8324,4333.5,4333.4,41.5297]
[1757028029254,0.8324,4333.5,4333.4,41.7637]
[1757028029650,0.8324,4333.5,4333.4,0.9637]
[1757028030658,0.8324,4333.5,4333.4,0.4186]
[1757028030852,0.8324,4333.5,4333.4,0.6536]
[1757028031048,0.8324,4333.5,4333.4,0.443]
[1757028031357,0.8324,4333.5,4333.4,0.235]
[1757028032160,0.8324,4333.0,4332.9,0.208]
[1757028032361,0.8324,4333.0,4332.9,0.235]
[1757028032956,0.5242,4333.0,4331.8,0.41549]
[1757028033161,0.1221,4333.0,4331.9,0.5461]
[1757028033357,0.8324,4332.0,4331.9,0.4186]
[1757028033561,0.8324,4332.0,4331.9,0.9647]
[1757028034162,0.8324,4332.0,4331.9,41.7647]
[1757028034562,0.5085,4332.0,4331.9,41.7647]
[1757028034762,0.5242,4332.5,4332.4,0.208]
[1757028034964,0.5242,4332.5,4332.4,0.6536]
[1757028035359,0.8324,4332.5,4332.4,0.6536]
[1757028035662,0.8324,4332.5,4332.4,0.443]
[1757028037668,0.8324,4332.5,4332.4,0.235]
[1757028038060,0.8324,4332.5,4332.4,0.443]
[1757028040078,0.8324,4332.5,4331.6,0.3111]
[1757028040283,0.4021,4331.8,4331.7,0.208]
[1757028040485,0.7103,4331.8,4331.7,0.443]
[1757028041385,0.7103,4331.8,4331.7,0.6536]
[1757028041885,0.7103,4331.8,4331.7,0.9647]
[1757028042179,0.7103,4331.8,4331.7,0.235]
[1757028042484,0.7103,4331.8,4331.3,31.839]
[1757028042680,0.5242,4331.5,4331.4,0.443]
[1757028042884,0.8324,4331.5,4331.4,0.443]
[1757028043274,0.8324,4331.5,4331.4,0.6536]
[1757028043881,0.8324,4331.5,4331.4,0.9647]
[1757028043882,0.3082,4331.5,4331.4,0.9647]
[1757028045783,0.1221,4332.0,4331.4,0.9647]
[1757028045784,0.3082,4331.9,4331.4,0.6536]
[1757028045980,0.1221,4333.0,4332.1,0.41546]
[1757028046285,0.5242,4333.0,4332.9,0.4186]
[1757028046474,0.8324,4333.0,4332.9,0.9647]
[1757028046673,0.8324,4333.0,4332.9,0.6536]
[1757028047282,0.8324,4333.0,4332.9,0.9647]
[1757028047478,0.8324,4333.0,4332.9,0.443]
[1757028048489,0.8324,4333.0,4332.9,0.235]
[1757028048887,0.8324,4333.0,4332.9,0.4365]
[1757028049086,0.8324,4333.0,4332.9,0.9606]
[1757028050082,0.5009,4333.0,4332.9,0.9606]
[1757028050591,0.8207,4333.0,4332.9,0.9606]
[1757028050794,0.8207,4333.0,4332.9,0.4365]
[1757028051979,0.8207,4333.0,4332.9,0.4098]
[1757028052180,0.8207,4333.0,4332.9,0.7256]
[1757028053493,0.8207,4333.0,4332.9,0.4098]
[1757028054795,0.8207,4333.0,4332.9,0.2015]
[1757028055398,0.8207,4333.0,4332.8,0.235]
[1757028058697,0.8207,4333.0,4332.8,0.135]
[1757028059894,0.8207,4333.0,4332.9,0.2015]
[1757028060498,0.8207,4333.0,4332.9,0.4098]
[1757028060696,0.8207,4333.0,4332.9,0.7256]
[1757028061093,0.8207,4333.0,4332.9,0.4098]
[1757028061294,0.8207,4333.0,4332.9,0.2015]
[1757028061496,0.8207,4333.0,4332.9,0.7256]
[1757028061907,0.703,4333.0,4332.9,0.7256]
[1757028062302,0.8207,4333.0,4332.9,0.4098]
[1757028064203,0.8207,4333.0,4332.8,0.135]
[1757028064606,0.8207,4333.0,4332.9,0.2015]
[1757028065506,0.8207,4333.0,4332.8,0.135]
[1757028067102,0.1177,4333.0,4332.9,0.7256]
[1757028067407,0.1927,4333.0,4332.9,0.7256]
[1757028067711,0.4937,4333.0,4332.9,0.7256]
[1757028069001,0.5169,4334.0,4333.9,0.4098]
[1757028069200,0.5169,4334.0,4333.9,0.7256]
[1757028069707,0.8179,4334.0,4333.9,0.7256]
[1757028070803,0.1221,4334.5,4333.9,0.7256]
[1757028071000,0.8179,4334.5,4334.4,0.2015]
[1757028072401,0.8179,4334.5,4334.4,0.7256]
[1757028072607,0.1177,4335.5,4334.5,0.3158]
[1757028072800,0.6114,4335.0,4334.9,0.7256]
[1757028073002,0.8135,4335.0,4334.9,0.7256]
[1757028073201,0.1177,4336.0,4335.3,0.4098]
[1757028073405,0.6958,4335.9,4335.8,0.2015]
[1757028073607,0.1927,4334.7,4334.6,0.7256]
[1757028073808,0.301,4334.9,4334.6,0.5098]
[1757028074002,0.301,4334.9,4334.8,0.7256]
[1757028074198,0.4937,4334.9,4334.8,0.7256]
[1757028074404,0.301,4335.4,4334.9,0.3158]
[1757028074606,0.301,4335.4,4335.3,0.7256]
[1757028074811,0.4937,4335.4,4335.3,0.9596]
[1757028075811,0.4937,4335.9,4335.8,0.4098]
[1757028076012,0.4937,4335.9,4335.8,0.7256]
[1757028076510,0.6958,4335.9,4335.8,0.7256]
[1757028076698,0.6958,4335.9,4335.8,0.4098]
[1757028079516,0.6958,4335.9,4335.8,0.7218]
[1757028079720,0.2888,4336.3,4335.8,0.7218]
[1757028079910,0.4966,4336.4,4336.3,0.7292]
[1757028080111,0.7022,4336.4,4336.3,0.4478]
[1757028081815,0.7022,4336.4,4336.3,0.9632]
[1757028082912,0.2888,4336.3,4336.0,40.8]
[1757028083216,0.7022,4336.2,4336.1,0.234]
[1757028083422,0.7022,4336.2,4336.1,0.9632]
[1757028083716,0.4966,4336.2,4336.1,0.9632]
[1757028084819,0.4158,4336.5,4336.1,0.6512]
[1757028085015,0.5311,4337.0,4336.9,0.4172]
[1757028085525,0.8199,4337.0,4336.9,0.4172]
[1757028086215,0.8199,4337.0,4336.9,0.7292]
[1757028086609,0.8199,4337.0,4336.9,0.4172]
[1757028087010,0.8199,4337.0,4336.9,0.2138]
[1757028087619,0.8199,4337.0,4336.7,0.234]
[1757028088617,0.8199,4337.0,4336.9,0.2138]
[1757028088819,0.8199,4337.0,4336.9,0.7292]
[1757028089325,0.2888,4337.0,4336.9,0.7292]
[1757028089526,0.2888,4337.4,4337.0,0.312]
[1757028089720,0.8199,4337.5,4337.4,0.2138]
[1757028090016,0.8199,4337.5,4337.4,0.4172]
[1757028090621,0.8199,4337.5,4337.0,0.312]
[1757028092123,0.8199,4337.5,4336.7,0.234]
[1757028092423,0.8199,4337.5,4337.4,0.2138]
[1757028093226,0.8199,4337.5,4337.4,0.4172]
[1757028093526,0.8199,4337.5,4337.4,0.7292]
[1757028094729,0.4966,4337.5,4337.4,0.7292]
[1757028095925,0.8292,4337.5,4337.4,0.234]
[1757028097928,0.8292,4337.5,4337.4,0.4478]
[1757028098431,0.8292,4337.5,4337.4,0.2138]
[1757028098629,0.8292,4337.5,4337.4,0.4478]
[1757028100529,0.2888,4337.4,4337.0,40.8]
[1757028100726,0.2078,4336.5,4336.4,0.7292]
[1757028100930,0.8292,4336.5,4336.4,0.9632]
[1757028101130,0.8292,4336.5,4336.4,1.1938]
[1757028101331,0.8292,4336.5,4336.4,41.9938]
[1757028101831,0.127,4337.0,4336.5,0.312]
[1757028102025,0.8292,4337.0,4336.9,0.2138]
[1757028102830,0.8292,4337.0,4336.9,0.234]
[1757028103230,0.127,4336.5,4336.2,31.829]
[1757028103435,0.7022,4336.3,4336.2,31.829]
[1757028103830,0.7022,4336.3,4336.2,72.863]
[1757028104436,0.2888,4336.3,4336.2,72.863]
[1757028104633,0.4158,4336.5,4336.4,0.2434]
[1757028104937,0.6236,4336.5,4336.4,0.2434]
[1757028105433,0.8292,4336.5,4336.4,0.2434]
[1757028109533,0.127,4337.0,4336.4,0.3191]
[1757028109737,0.4457,4337.5,4337.4,0.2422]
[1757028109936,0.4457,4337.5,4337.4,0.4762]
[1757028110146,0.6459,4337.5,4337.4,41.2762]
[1757028111245,0.6459,4338.0,4337.9,0.2422]
[1757028111443,0.6459,4338.0,4337.9,0.4762]
[1757028114746,0.4457,4338.0,4337.9,0.5519]
[1757028114946,0.6459,4338.0,4337.9,0.4762]
[1757028115250,0.4361,4337.5,4337.4,40.8]
[1757028115445,0.4361,4337.5,4337.4,41.034]
[1757028115742,0.8476,4337.5,4337.4,0.234]
[1757028116050,0.7302,4337.4,4337.3,0.1211]
[1757028116250,0.7302,4337.4,4337.3,0.3551]
[1757028116450,0.7302,4337.4,4337.3,0.4762]
[1757028117242,0.7302,4337.4,4337.3,41.2762]
[1757028117850,0.7302,4337.4,4337.3,41.0422]
[1757028118051,0.5189,4337.4,4337.3,41.2762]
[1757028119049,0.5189,4337.4,4337.3,41.1551]
[1757028121255,0.5189,4337.4,4337.3,40.8]
[1757028121456,0.7302,4337.4,4337.3,0.234]
[1757028122147,0.4115,4337.4,4336.4,40.8]
[1757028122353,0.4361,4336.5,4336.4,40.8]
[1757028122657,0.4361,4336.5,4336.4,41.034]
[1757028122860,0.3187,4336.5,4336.4,41.1097]
[1757028123064,0.3176,4337.0,4336.9,0.2422]
[1757028123355,0.3176,4337.0,4336.9,0.4762]
[1757028123659,0.6363,4337.0,4336.9,0.2422]
[1757028123859,0.1174,4337.5,4337.3,0.2422]
[1757028124059,0.4361,4337.5,4337.4,0.5519]
[1757028124746,0.4361,4337.5,4337.4,0.4762]
[1757028124955,0.6363,4337.5,4337.4,0.4762]
[1757028125955,0.8476,4337.5,4337.4,0.4762]
[1757028126756,0.8476,4337.5,4337.4,0.3551]
[1757028127349,0.8476,4337.5,4337.4,0.1211]
[1757028127549,0.8476,4337.0,4336.9,0.1211]
[1757028127760,0.8476,4337.0,4336.9,0.234]
[1757028127954,0.4361,4336.5,4336.4,40.8]
[1757028128149,0.4361,4336.5,4336.4,41.034]
[1757028128857,0.4361,4336.5,4336.4,40.8]
[1757028129158,0.4361,4336.5,4336.4,41.034]
[1757028133456,0.4361,4336.5,4336.4,41.1097]
[1757028135558,0.1174,4337.0,4336.9,0.2422]
[1757028135759,0.1174,4337.5,4337.0,0.0757]
[1757028135960,0.6363,4337.5,4337.4,0.2422]
[1757028136259,0.8476,4337.5,4337.4,0.4762]
[1757028138064,0.4361,4337.5,4337.4,0.5529]
[1757028138760,0.6426,4337.5,4337.4,0.4762]
[1757028139376,0.4361,4337.5,4337.4,0.5529]
[1757028139567,0.6426,4337.5,4337.4,0.4762]
[1757028140566,0.8413,4337.5,4337.4,0.4762]
[1757028143072,0.7218,4336.9,4336.8,2.91443732]
[1757028143467,0.7218,4336.9,4336.7,0.234]
[1757028149377,0.4052,4336.9,4336.3,40.8]
[1757028149574,0.7218,4336.9,4336.8,0.234]
[1757028152881,0.7218,4336.9,4336.3,40.8]
[1757028153083,0.7218,4336.9,4336.8,0.234]
[1757028154984,0.7218,4336.4,4336.3,40.8]
[1757028155281,0.7218,4336.4,4336.3,41.034]
[1757028156682,0.7218,4336.4,4336.3,0.234]
[1757028157278,0.7218,4336.4,4336.3,0.3551]
[1757028160978,0.7218,4336.4,4336.3,0.4762]
[1757028162781,0.3239,4337.5,4337.4,0.1962]
[1757028162985,0.5226,4337.5,4337.4,0.4302]
[1757028163183,0.5226,4337.5,4337.4,0.234]
[1757028164881,0.8392,4337.5,4337.4,0.234]
[1757028166693,0.8392,4337.5,4336.9,0.3065]
[1757028166883,0.8392,4337.5,4337.4,0.234]
[1757028171389,0.8392,4337.5,4337.4,0.427]
[1757028171591,0.8392,4337.5,4337.4,0.9344]
[1757028171793,0.8392,4337.5,4337.4,0.427]
[1757028172493,0.8392,4337.5,4337.4,0.234]
[1757028173889,0.8392,4337.5,4336.4,3.61483732]
[1757028173890,0.3948,4336.5,4336.4,3.61483732]
[1757028174096,0.6918,4336.5,4336.4,0.9344]
[1757028180390,0.8111,4336.5,4336.4,0.9344]
[1757028180592,0.6918,4336.5,4336.4,0.9344]
[1757028180896,0.4945,4336.5,4336.4,0.9344]
[1757028185099,0.4945,4336.5,4336.4,0.7844]
[1757028185702,0.6138,4336.5,4336.4,0.7844]
[1757028186001,0.8111,4336.5,4336.4,0.7844]
[1757028186799,0.297,4336.5,4336.4,0.6292]
[1757028187105,0.297,4336.5,4336.4,0.9344]
[1757028187399,0.4945,4336.5,4336.4,0.9344]
[1757028187602,0.297,4336.5,4336.4,0.9344]
[1757028187794,0.3149,4337.5,4336.5,0.0757]
[1757028187997,0.4945,4337.4,4337.3,0.7004]
[1757028188193,0.6918,4337.4,4337.3,0.6292]
[1757028190002,0.6918,4337.4,4337.3,0.9344]
[1757028190202,0.4945,4337.9,4337.8,0.3952]
[1757028190403,0.4945,4337.9,4337.8,0.9344]
[1757028190904,0.6918,4337.9,4337.8,0.6292]
[1757028191205,0.6918,4337.9,4337.8,0.234]
[1757028191703,0.3948,4337.4,4337.3,40.8]
[1757028191903,0.6918,4337.4,4337.3,40.956]
[1757028193503,0.6918,4337.4,4337.3,41.3392]
[1757028193893,0.4945,4337.4,4337.3,41.3392]
[1757028194298,0.4945,4337.4,4337.3,0.9344]
[1757028195707,0.297,4337.4,4337.3,0.9344]
[1757028197606,0.4945,4337.4,4337.3,0.9344]
[1757028197908,0.6921,4337.4,4337.3,0.6292]
[1757028198409,0.6921,4337.4,4337.3,0.9351]
[1757028198802,0.297,4337.4,4337.3,0.9351]
[1757028199305,0.6933,4337.4,4337.3,0.9351]
[1757028201510,0.4957,4337.4,4337.3,0.9351]
[1757028202410,0.6933,4337.4,4337.3,0.6292]
[1757028202806,0.6933,4337.4,4337.3,0.193]
[1757028203007,0.6933,4337.4,4337.3,0.4371]
[1757028203211,0.6933,4337.4,4337.3,0.9434]
[1757028204305,0.6933,4337.4,4337.3,0.6375]
[1757028204505,0.6933,4337.4,4337.3,0.4371]
[1757028207603,0.4406,4337.0,4336.9,40.8]
[1757028207915,0.8369,4337.0,4336.9,0.4371]
[1757028208510,0.8369,4337.0,4336.9,0.6375]
[1757028208815,0.8369,4337.0,4336.9,0.4371]
[1757028210204,0.8369,4337.0,4336.9,0.9434]
[1757028211119,0.5173,4337.0,4336.9,0.9434]
[1757028211317,0.122,4337.5,4336.9,0.6375]
[1757028211517,0.5183,4337.5,4337.4,0.2031]
[1757028211815,0.5183,4337.5,4337.4,0.4371]
[1757028212117,0.8369,4337.5,4337.4,0.4371]
[1757028212816,0.8369,4337.5,4337.4,0.6375]
[1757028213811,0.8369,4337.5,4337.4,0.9434]
[1757028214017,0.8369,4337.5,4337.4,0.4371]
[1757028214717,0.8369,4337.5,4337.4,0.6375]
[1757028217024,0.8369,4337.5,4337.4,0.9434]
[1757028218720,0.8369,4337.5,4337.4,0.6375]
[1757028218921,0.8369,4337.5,4337.4,0.4371]
[1757028219117,0.8369,4337.5,4337.4,0.234]
[1757028219526,0.8369,4337.5,4337.4,0.4371]
[1757028219822,0.8369,4337.5,4337.4,0.2031]
[1757028220024,0.8369,4337.5,4337.4,0.4371]
[1757028220228,0.8369,4337.5,4337.4,0.234]
[1757028220727,0.122,4337.0,4336.9,3.11753732]
[1757028220911,0.8369,4337.0,4336.9,3.35153732]
[1757028221114,0.8369,4337.0,4336.9,0.4371]
[1757028221523,0.8369,4337.0,4336.9,0.6375]
[1757028223025,0.8369,4337.0,4336.9,0.9434]
[1757028223318,0.122,4337.5,4337.0,0.415]
[1757028223524,0.3186,4337.4,4337.3,0.7094]
[1757028223823,0.3186,4337.9,4337.3,1.05246]
[1757028224018,0.8419,4338.0,4337.9,0.2031]
[1757028224220,0.8419,4338.0,4337.9,0.4371]
[1757028224923,0.8419,4338.0,4337.9,0.234]
[1757028226825,0.5233,4338.0,4337.1,0.41499]
[1757028227026,0.7149,4337.2,4337.1,0.2031]
[1757028227227,0.7149,4337.2,4337.1,0.4371]
[1757028228523,0.7149,4337.2,4337.1,0.6504]
[1757028231927,0.7149,4337.2,4337.1,0.4371]
[1757028237624,0.7149,4337.2,4336.8,41.51931]
[1757028237625,0.1178,4337.0,4336.7,2.91443732]
[1757028237929,0.7081,4336.8,4336.4,34.73243732]
[1757028238135,0.7081,4336.8,4336.7,0.423]
[1757028238334,0.7081,4336.8,4336.7,0.7273]
[1757028240926,0.7081,4336.8,4336.7,0.423]
[1757028241731,0.7081,4336.8,4336.7,0.2097]
[1757028242636,0.7081,4336.8,4336.7,0.4437]
[1757028243137,0.7081,4336.8,4336.7,0.9613]
[1757028245541,0.3025,4336.8,4336.7,0.9613]
[1757028245730,0.5276,4337.5,4337.4,0.2097]
[1757028245931,0.5276,4337.5,4337.4,0.4437]
[1757028246132,0.5276,4337.5,4337.4,0.9613]
[1757028246331,0.8301,4337.5,4337.4,0.9613]
[1757028246631,0.1178,4338.5,4337.9,0.423]
[1757028246835,0.3025,4338.0,4337.9,0.7273]
[1757028247031,0.8259,4338.0,4337.9,0.657]
[1757028247233,0.5234,4338.0,4337.9,0.234]
[1757028247639,0.5234,4337.5,4337.4,0.2097]
[1757028247827,0.7081,4337.4,4337.3,0.2133]
[1757028248032,0.7081,4337.4,4337.3,0.9613]
[1757028248238,0.7081,4337.4,4337.3,0.657]
[1757028248938,0.7081,4337.4,4337.3,0.234]
[1757028249432,0.4056,4337.4,4336.7,2.91443732]
[1757028249640,0.7081,4336.8,4336.7,3.12413732]
[1757028249838,0.7081,4336.8,4336.7,0.4437]
[1757028251036,0.7081,4336.8,4336.7,0.657]
[1757028254142,0.4056,4336.8,4336.7,0.4437]
[1757028254434,0.7081,4336.8,4336.7,0.657]
[1757028256744,0.7081,4336.8,4336.7,0.423]
[1757028257043,0.7081,4336.8,4336.7,0.657]
[1757028257242,0.7081,4336.8,4336.7,0.4437]
[1757028257646,0.4056,4336.8,4336.7,0.4437]
[1757028257946,0.6955,4336.8,4336.7,0.654]
[1757028258146,0.6955,4336.8,4336.7,0.9454]
[1757028259647,0.2899,4336.8,4336.7,0.9454]
[1757028260541,0.7013,4336.8,4336.7,0.654]
[1757028260741,0.7013,4336.8,4336.7,0.4437]
[1757028261242,0.7013,4336.8,4336.7,0.2097]
[1757028261548,0.2899,4336.8,4336.7,0.9454]
[1757028261943,0.7013,4336.8,4336.7,0.654]
[1757028262739,0.7013,4336.8,4336.7,0.9454]
[1757028263651,0.5028,4336.8,4336.7,0.9454]
[1757028263848,0.2899,4336.8,4336.7,0.9454]
[1757028264246,0.1178,4338.0,4336.8,0.2914]
[1757028264452,0.1178,4338.0,4337.4,0.2914]
[1757028264453,0.7013,4337.9,4337.4,0.2914]
[1757028264651,0.7013,4337.9,4337.5,0.234]
[1757028265552,0.7013,4337.9,4337.6,0.234]
[1757028267053,0.5028,4337.2,4337.1,0.7094]
[1757028267255,0.7013,4337.2,4337.1,0.652]
[1757028267450,0.7013,4337.2,4337.1,0.2077]
[1757028267658,0.7013,4337.2,4337.1,0.4417]
[1757028268455,0.7013,4337.2,4337.1,0.652]
[1757028268760,0.7013,4337.2,4337.1,0.9434]
[1757028268950,0.7013,4337.2,4337.1,0.7094]
[1757028269150,0.7013,4337.2,4337.1,0.9434]
[1757028269749,0.2899,4337.2,4337.1,1.35839]
[1757028269955,0.1178,4338.0,4337.3,0.7094]
[1757028270152,0.2899,4337.9,4337.4,0.2914]
[1757028270350,0.7013,4337.9,4337.8,0.2077]
[1757028271165,0.7013,4337.9,4337.8,0.7094]
[1757028271357,0.2899,4337.9,4337.8,0.7094]
[1757028271556,0.2899,4338.4,4338.0,0.4149]
[1757028271762,0.7013,4338.4,4338.3,0.2077]
[1757028271958,0.7013,4338.4,4338.3,0.418]
[1757028272560,0.7013,4338.4,4338.3,0.2077]
[1757028276561,0.7013,4338.4,4338.3,0.418]
[1757028276761,0.7013,4338.4,4338.3,0.7094]
[1757028278966,0.7013,4338.4,4338.3,0.418]
[1757028280555,0.7013,4338.4,4338.3,0.7094]
[1757028281867,0.7013,4338.4,4338.3,0.418]
[1757028282670,0.7013,4338.4,4338.3,0.2077]
[1757028282869,0.7013,4338.4,4338.1,0.234]
[1757028283964,0.7013,4338.4,4338.3,0.2077]
[1757028284368,0.7013,4338.4,4338.3,0.7094]
[1757028286268,0.7013,4338.4,4338.3,0.418]
[1757028287858,0.7013,4338.4,4338.3,0.7349]
[1757028290165,0.7013,4338.4,4338.3,0.418]
[1757028290571,0.7013,4338.4,4338.3,0.7349]
[1757028293172,0.2899,4338.4,4338.3,0.7349]
[1757028293468,0.5004,4338.8,4338.7,0.4123]
[1757028293673,0.5004,4338.8,4338.7,0.9622]
[1757028294162,0.2915,4338.8,4338.7,0.9622]
[1757028294364,0.2915,4339.2,4339.1,0.9413]
[1757028294571,0.5004,4339.2,4339.1,0.7292]
[1757028294974,0.7121,4339.2,4339.1,0.4123]
[1757028295277,0.7121,4339.2,4338.8,40.8]
[1757028295278,0.2915,4338.9,4338.8,40.8]
[1757028295470,0.2915,4338.9,4338.8,41.033]
[1757028296472,0.2915,4338.9,4338.8,40.8]
[1757028296675,0.2915,4338.9,4338.8,41.033]
[1757028298267,0.7121,4338.9,4338.8,0.6453]
[1757028298666,0.7121,4338.9,4338.8,0.9622]
[1757028300078,0.7121,4338.9,4338.8,0.6453]
[1757028304983,0.5004,4338.9,4338.8,0.9622]
[1757028305484,0.5004,4338.9,4338.8,0.7292]
[1757028305672,0.7121,4338.9,4338.8,0.6453]
[1757028305876,0.2915,4338.8,4338.6,40.8]
[1757028306077,0.7121,4338.7,4338.6,40.8]
[1757028306282,0.7121,4338.7,4338.6,41.033]
[1757028306482,0.7121,4338.7,4338.6,0.233]
[1757028306974,0.8299,4338.5,4338.4,0.2027]
[1757028307170,0.5384,4338.5,4338.4,0.233]
[1757028307773,0.8299,4338.5,4338.4,0.233]
[1757028308487,4.7689,4338.5,4338.4,0.233]
[1757028308688,4.5384,4338.5,4338.4,0.233]
[1757028308987,5.0604,4338.5,4338.4,0.233]
[1757028309486,5.0604,4338.5,4338.0,31.81]
[1757028309682,0.7121,4338.2,4338.1,0.233]
[1757028310477,0.2915,4338.1,4338.0,31.81]
[1757028310676,0.2915,4338.1,4338.0,32.043]
[1757028310885,0.2915,4338.1,4338.0,32.3599]
[1757028313285,0.6182,4338.5,4338.4,0.4123]
[1757028313487,0.5004,4338.5,4338.4,0.9622]
[1757028314392,0.8299,4338.5,4338.4,0.9622]
[1757028314683,0.8299,4338.5,4338.4,0.6453]
[1757028314883,0.8299,4338.5,4338.4,0.4357]
[1757028315091,0.8299,4338.5,4338.4,0.9622]
[1757028316389,0.1178,4339.0,4338.4,0.6453]
[1757028316688,0.7121,4338.9,4338.8,0.7292]
[1757028316881,0.7121,4338.9,4338.8,0.9622]
[1757028317088,0.7121,4338.9,4338.8,0.6453]
[1757028317485,0.7121,4338.9,4338.8,0.233]
[1757028318691,0.7121,4338.9,4338.8,0.4413]